Cogmind - Beta 11.1 *** ADVENTURER MODE // 2022.10.07 @ 14:27:03 Player: Birbsy Result: Destroyed by as-57399 with Assembled Rifle Performance ------------- Evolutions (0) 0 Regions Visited (2) 400 Robots Destroyed (13) 65 Value Destroyed (192) 192 Prototype IDs (0) 0 Alien Tech Used (0) 0 Bonus (0) 0 TOTAL SCORE: 657 Bonus ------- None Cogmind --------- Core Integrity 0/250 Matter 296/300 Energy 100/100 System Corruption 1% Temperature Cool (0) Movement Core (350) Ox6 Location -10/Mines Parts ------- > --- POWER (1) -------- (None) > --- PROPULSION (2) --- (None) > --- UTILITY (2) ------ Large Storage Unit Transport Network Coupler > --- WEAPON (2) ------- (None) > --- INVENTORY (15) --- Medium Storage Unit Structural Scanner Visual Processing Unit Sensor Array Signal Interpreter Signal Interpreter Terrain Scanner Transport Network Coupler Core Shielding Utility Shielding Light Assault Rifle Shotgun Grenade Launcher Heavy Hammer Peak State ------------ > --- POWER ------------ Ion Engine > --- PROPULSION ------- Aluminum Leg Aluminum Leg > --- UTILITY ---------- Large Storage Unit Transport Network Coupler > --- WEAPON ----------- Shotgun Improved Light Cannon > --- INVENTORY -------- Light Ion Engine Medium Storage Unit Structural Scanner Visual Processing Unit Signal Interpreter Signal Interpreter Terrain Scanner Transport Network Coupler Core Shielding Utility Shielding Light Assault Rifle Grenade Launcher Heavy Hammer [Rating: 10] Favorites ----------- Power Ion Engine Engine Ion Engine Propulsion Aluminum Leg Leg Aluminum Leg Utility Transport Network Coupler Storage Large Storage Unit Processor Transport Network Coupler Weapon Shotgun Ballistic Gun Shotgun Ballistic Cannon Improved Light Cannon Launcher Grenade Launcher Special Weapon Mining Laser Build | -11 -10 -10 ------- Run | Scr Mat Min Slots Evolved . | . . . Power . | . . . Propulsion . | . . . Utility . | . . . Weapon . | . . . Parts Attached 20 | 6 12 2 Power 5 | 1 3 1 Engine 5 | 1 3 1 Core . | . . . Reactor . | . . . Propulsion 4 | 2 2 . Treads . | . . . Leg 4 | 2 2 . Wheel . | . . . Hover . | . . . Flight . | . . . Utility 3 | 1 2 . Device . | . . . Storage 2 | 1 1 . Processor 1 | . 1 . Hackware . | . . . Protection . | . . . Artifact . | . . . Weapon 8 | 2 5 1 Energy Gun . | . . . Energy Cannon . | . . . Ballistic Gun 4 | 2 2 . Ballistic Cannon 1 | . 1 . Launcher 2 | . 2 . Special Weapon 1 | . . 1 Impact Weapon . | . . . Slashing Weapon . | . . . Piercing Weapon . | . . . Special Melee Weapon . | . . . Unidentified Prototypes . | . . . Parts Lost 7 | . 1 6 Power 2 | . . 2 Propulsion 2 | . . 2 Utility . | . . . Weapon 3 | . 1 2 Highest Loss Streak 6 | . 1 6 To Critical Strikes . | . . . Average Slot Usage (%) 98 | . 99 96 Engine 13 | . 13 12 Leg 27 | . 27 26 Storage 14 | . 14 14 Processor 13 | . 13 14 Ballistic Gun 17 | . 19 . Ballistic Cannon 3 | . 1 13 Launcher 5 | . 6 . Special Weapon 1 | . . 12 Naked Turns . | . . . Heaviest Build 32 | 10 32 32 Greatest Support 20 | 20 20 20 Greatest Overweight (x) 6 | . 1 6 Average Overweight (x) . | . . 1 Largest Inventory Capacity 15 | 8 15 15 Average Capacity 13 | 6 13 15 Most Carried 15 | 1 14 15 Average Carried 10 | . 9 14 Final Capacity 15 | 8 15 15 Final Carried 14 | 1 14 14 Class Distribution -------------------- 100% | Mutant Dominant Class ---------------- Mutant | -10/Materials Mutant | -10/Mines Resources | -11 -10 -10 ----------- Run | Scr Mat Min Matter Collected 576 | 222 260 94 Remotely . | . . . Salvage Created 161 | . 161 . Parts 24 | . 24 . Haulers Intercepted 1 | . 1 . Recyclers Shooed 1 | . 1 . Parts Field Recycled . | . . . Retrieved Matter . | . . . Parts Self-Destructed . | . . . Prevented . | . . . Kills | -11 -10 -10 ------- Run | Scr Mat Min Combat Hostiles Destroyed 8 | . 8 . Guns 1 | . 1 . AOE 7 | . 7 . Classes Destroyed 5 | . 5 . Worker 1 | . 1 . Hauler 1 | . 1 . Watcher 3 | . 3 . Swarmer 6 | . 6 . Grunt 2 | . 2 . Best Kill Streak 4 | . 4 . Combat Bots Only 3 | . 3 . Max Kills in Single Turn 2 | . 2 . Gunslinging . | . . . Exploded 2 | . 2 . Melee . | . . . Uniques/NPCs Destroyed . | . . . Combat | -11 -10 -10 -------- Run | Scr Mat Min Damage Taken 1067 | . 468 599 Core 250 | . 95 155 Absorbed by Shields . | . . . Regen/Repaired (Parts) 73 | . 73 . Core Remaining (%) 100 | 100 . . Volleys Fired 24 | . 21 3 Largest 2 | . 2 1 Hottest 100 | . 53 100 Shots Fired 46 | . 43 3 Gun 28 | . 28 . Cannon . | . . . Launcher 15 | . 15 . Special 3 | . . 3 Kinetic 28 | . 28 . Thermal 3 | . . 3 Explosive 15 | . 15 . Electromagnetic . | . . . Robot Hit Streak 10 | . 10 . Robot Miss Streak 3 | . 3 . Penetration Max . | . . . Secondary Targets . | . . . Shots Hit Robots 25 | . 25 . Core Hits 22 | . 22 . Critical Kills . | . . . Critical Parts Destroyed . | . . . Critical Strikes . | . . . Melee Attacks . | . . . Impact . | . . . Slashing . | . . . Piercing . | . . . Sneak Attacks . | . . . Combat Hostiles . | . . . Follow-up Attacks . | . . . Damage Inflicted 978 | . 978 . Guns 168 | . 168 . Cannons . | . . . Explosions 805 | . 805 . Melee . | . . . Ramming 5 | . 5 . Kinetic 168 | . 168 . Thermal . | . . . Explosive 805 | . 805 . Electromagnetic . | . . . Impact . | . . . Slashing . | . . . Piercing . | . . . Highest Corruption 1 | . 1 1 Average Corruption 1 | . 1 1 Corruption Purged . | . . . Corruption Blocked . | . . . Effects 7 | . 6 1 Message Errors 1 | . 1 . Matter Fused 3 | . 3 . Energy Discharges 1 | . . 1 Data Loss (major) 1 | . 1 . Misfires 1 | . 1 . Overload Shots . | . . . Overflow Damage 25 | . 25 . Projectiles . | . . . Explosions 25 | . 25 . Melee . | . . . Knockbacks . | . . . Impact . | . . . Kinetic . | . . . Secondary . | . . . Self-Inflicted Damage 11 | . 11 . Shots 1 | . 1 . Rammed . | . . . Targets Rammed 2 | . 2 . Kicked 2 | . 2 . Crushed . | . . . Highest Temperature 40 | . 20 40 Average Temperature 11 | . 8 17 Received Heat Transfer 27 | . 27 . Siege Activations . | . . . Robots Corrupted . | . . . Combat Hostiles . | . . . Parts Fried . | . . . Impact Corruptions . | . . . Robots Melted . | . . . Combat Hostiles . | . . . Parts Melted . | . . . Heat Transferred . | . . . Parts Sabotaged . | . . . Parts Stolen . | . . . Parts Stripped . | . . . Power Chain Reactions . | . . . Missiles Intercepted . | . . . Alert | -11 -10 -10 ------- Run | Scr Mat Min Peak Influence 416 | . 416 15 Initial . | . . . Average 116 | . 141 2 Maximum Alert Level 2 | . 2 . Low Security (%) 67 | 100 60 100 Level 1 28 | . 35 . Level 2 3 | . 4 . Level 3 . | . . . Level 4 . | . . . Level 5 . | . . . High Security . | . . . Max Security . | . . . Squads Dispatched . | . . . Investigation . | . . . Extermination . | . . . Reinforcement . | . . . Assault . | . . . Garrison . | . . . Intercept . | . . . Searches Triggered . | . . . Construction Impeded . | . . . Haulers Reinforced . | . . . Active Scanning Responses . | . . . Cargo Convoy Interrupts . | . . . Stealth | -11 -10 -10 --------- Run | Scr Mat Min Distress Signals . | . . . Communications Jammed . | . . . Distress Signals . | . . . Times Spotted 22 | . 12 10 Peak Tracking Total 7 | . 6 7 Tactical Retreats . | . . . Traps | -11 -10 -10 ------- Run | Scr Mat Min Traps Triggered 2 | . 2 . Indirectly . | . . . Trap Hack Attempts . | . . . Triggered . | . . . Disarmed . | . . . Reprogrammed . | . . . Reused . | . . . Traps Extracted . | . . . Installed . | . . . Triggered . | . . . Machines | -11 -10 -10 ---------- Run | Scr Mat Min Machines Disabled . | . . . Max in Single Turn . | . . . Machines Sabotaged . | . . . Garrisons Compromised . | . . . Overloaded Fab Kills . | . . . Hacking | -11 -10 -10 --------- Run | Scr Mat Min Machines Accessed 7 | . 7 . Terminals 6 | . 6 . Fabricators . | . . . Repair Stations 1 | . 1 . Recycling Units . | . . . Scanalyzers . | . . . Garrison Access . | . . . Total Hacks 15 | . 15 . Successful 13 | . 13 . Failed 2 | . 2 . Catastrophic . | . . . Database Lockouts . | . . . Manual . | . . . Terminals 11 | . 11 . Fabricators . | . . . Repair Stations 4 | . 4 . Recycling Units . | . . . Scanalyzers . | . . . Garrison Access . | . . . Terminal Hacks 9 | . 9 . Record 3 | . 3 . Alert Level 2 | . 2 . Locate Traps 1 | . 1 . Dispatch Records 1 | . 1 . Patrol Status 1 | . 1 . Zone Layout 1 | . 1 . Fabricator Hacks . | . . . Repair Station Hacks 4 | . 4 . Scan Component 2 | . 2 . Repair 2 | . 2 . Recycling Unit Hacks . | . . . Scanalyzer . | . . . Garrison Access Hacks . | . . . Unauthorized Hacks . | . . . Terminals . | . . . Fabricators . | . . . Repair Stations . | . . . Recycling Units . | . . . Scanalyzers . | . . . Garrison Access . | . . . Data Cores Recovered . | . . . Used . | . . . Hacking Detections 5 | . 5 . Full Trace Events . | . . . Feedback Events . | . . . Feedback Blocked . | . . . Robot Schematics Acquired . | . . . Robots Built . | . . . Authchips . | . . . Time . | . . . Total Robot Build Rating . | . . . Part Schematics Acquired . | . . . Parts Built . | . . . Authchips . | . . . Time . | . . . Total Part Build Rating . | . . . Parts Repaired 2 | . 2 . Time 52 | . 52 . Parts Recycled . | . . . Recycled Matter . | . . . Retrieved Matter . | . . . Retrieved Components . | . . . Parts Scanalyzed . | . . . Part Schematics Acquired . | . . . Parts Damaged . | . . . Bothacking | -11 -10 -10 ------------ Run | Scr Mat Min Used RIF Installer . | . . . Robots Hacked . | . . . Non-combat . | . . . Combat . | . . . Robot Hacks Applied . | . . . Relay Couplers Released . | . . . Fabnet Peak Effective % . | . . . Robots Rewired . | . . . Allies Hacked . | . . . Hacks Repelled . | . . . Allies | -11 -10 -10 -------- Run | Scr Mat Min Total Allies 1 | . . 1 Largest Group 1 | . . 1 Highest-Rated Group 31 | . . 31 Highest-Rated Ally 31 | . . 31 Total Orders . | . . . Ally Attacks 1 | . . 1 Total Damage 20 | . . 20 Kills . | . . . Allies Corrupted . | . . . Allies Melted . | . . . Intel | -11 -10 -10 ------- Run | Scr Mat Min Robot Analysis Total . | . . . Derelict Logs Recovered . | . . . Drone Launches . | . . . Drone Recoveries . | . . . Exploration | -11 -10 -10 ------------- Run | Scr Mat Min Turns Passed 1830 | 66 1498 266 Spaces Moved 996 | 49 816 131 Core 4 | 3 . 1 Treads . | . . . Legs 992 | 46 816 130 Wheels . | . . . Hover . | . . . Flight . | . . . Fastest Speed 50 | 50 120 190 Average Speed 166 | 115 165 192 Slowest Speed 350 | 120 190 350 Overloaded Moves . | . . . Propulsion Burnouts . | . . . Robots Hopped . | . . . Cave-ins Triggered . | . . . Exploration Rate (%) 40 | 4 83 35 Regions Visited 2 Branch Regions 1 Pre-discovered Areas . | . . . Known Exits Taken . | . . . Unknown Exits Taken 2 | 1 1 . Scrap Searched . | . . . Spaces Dug 17 | . 14 3 Terrain Destroyed 76 | . 73 3 Melee . | . . . Projectile 3 | . . 3 AOE 73 | . 73 . Terrain Rammed . | . . . Walls Destroyed . | . . . Machines Disabled . | . . . Actions | -11 -10 -10 --------- Run | Scr Mat Min Total 1117 | 55 925 137 Wait 52 | . 52 . Move 994 | 48 815 131 Hop . | . . . Pick Up 18 | 1 17 . Fast Attach 13 | 6 6 1 Attach 3 | . 2 1 Detach 1 | . . 1 Swap 4 | . 4 . Drop 6 | . 6 . Fire 24 | . 21 3 Melee . | . . . Ram . | . . . Kick 2 | . 2 . Crush . | . . . Escape Stasis . | . . . Rewire . | . . . Trap . | . . . Miscellaneous . | . . . Route ------- -11/Scrapyard -10/Materials (discovered 4 exits: [*Mat x2] / [*Min x2]) -10/Mines (discovered 1 exit: [*Mat]) History --------- Turn | Location | Event 7 | -11/Scrapyard | Discovered new exit (range 16) 67 | -11/Scrapyard | Entered Materials 310 | -10/Materials | Build established: Mutant 432 | -10/Materials | Discovered new exit (range 15) 582 | -10/Materials | Discovered new exit (range 9) 968 | -10/Materials | Discovered new exit (range 7) 1187 | -10/Materials | Discovered new exit (range 16) 1266 | -10/Materials | Repaired Aluminum Leg 1293 | -10/Materials | Repaired Ion Engine 1565 | -10/Materials | Entered Mines 1568 | -10/Mines | Received a Mining Laser from a helpful Derelict 1651 | -10/Mines | Met a Derelict bent on vengeance 1791 | -10/Mines | Assembled infested the area 1796 | -10/Mines | Assisted by a Guerilla fighting off Assembled 1814 | -10/Mines | Core integrity fell below 50% 1824 | -10/Mines | Discovered new exit (range 13) 1830 | -10/Mines | Core integrity fell below 20% 1831 | -10/Mines | Destroyed by as-57399 with Assembled Rifle Last Messages --------------- 01817_ LE-6HK(h) destroyed. 01817_ Ion Engine destroyed. 01818_ Mining Laser destroyed. 01819_ U-05 Engineer lays Concrete. 01822_ as-18199 destroyed. 01822_ Aluminum Leg destroyed. 01822_ as-50338 destroyed. 01823_ U-05 Engineer lays Concrete. 01824_ as-84333 destroyed. 01824_ as-49493 destroyed. 01824_ EXIT=FOUND 01824_ Imp. Light Cannon destroyed. 01824_ K-01 Serf destroyed. 01825_ U-05 Engineer builds a Wall. 01827_ as-36643 destroyed. 01827_ as-30878 destroyed. 01827_ Aluminum Leg destroyed. 01827_ Lgt. Ion Engine destroyed. 01829_ U-05 Engineer builds a Wall. 01829_ as-89867 destroyed. Map ----- +----------------------------------------------------+ | ?????????????????????????????????????????????????? | | ?????????????????????????????????????????????????? | | ?????????????????????????????????????????????????? | | ???????????????????????????????????????? ????????? | | ????????????????????????????????????? ????????? | | ??????????????????????????????????? ????????? | | ?????????????????????????????????? ???????? | | ?????????????????????????????????? ???????? | | ??????????????????????????????????? ???????? | | ???????????????????????????????????? #??????# | | ????????????????????????????????????? ###??## | | ????????????????????? ???????????#???? ##?# | | ??????????????????%= ??????????? ?????# #?# | | ???????????????? *a% #????????? ??????# ### | | ???????????????# !<* #???????? ??????# #?# | | ??????????????## = #??????? ??????# #?? | | ??????????????* ###???? #??????# ### | | ??????????????? ##??? #???????# ## | | ????????????????# #??? #???????# | | ?????????????????# #??? #???????## | | ??????????????????# #### #????????### | | ???????????????????# # #??????????## # | | ????????????????????# # #????????????## ## | | ????????????????????# #?????????????# #? | | ????????????????????# ############### #? | | ???????????????????## @ # #? | | ???????????????????# u #######? | | ???????????????????## ###### #??????? | | ????????????????????# ##???# #??????? | | ????????????????????# #??# #??????? | | ???????????????????# ##??# #??????? | | ???????????????????# ##??? #??????? | | ???????????????????# d #?? #??????? | | ?????????????# #### d #? """ #??????? | | ?????????????#"%" # """ ##??????? | | ?????????????# " % """ #????????? | | ?????????????###### #????????? | | ??????????????????### # ##????????? | | ????????????????????# ## #####?????????? | | ????????????????????## ######?######?????????????? | | ?????????????????????##??????????????????????????? | | | | | | | | | | | | | | | | | | | +----------------------------------------------------+ Best States ------------- Heat Dissipation 25 Energy Generation 10 Energy Capacity 250 Matter Stores 300 Matter Capacity 300 Sight Range 16 Terrain Scan Density 10 Resistance: KI 20 Resistance: TH 20 Resistance: EX 20 Resistance: EM 20 Resistance: I 20 Resistance: S 20 Resistance: P 20 Evasion (%) 55 Offensive Hacking 10 Item Schematics ----------------- None Robot Schematics ------------------ None Fabricated ------------ Nothing Alien Tech Used ----------------- None Achievements -------------- None Challenges ------------ None Game ------ Seed StasisDisposableRail Manual? 0 Play Time 00:20:53 Cumulative 11.1 hours Start 2022.10.07 @ 13:55:16 End 2022.10.07 @ 14:27:03 Sessions 1 Manual Loads 0 Difficulty Adventurer Special Mode None Game No. 6 Rogue 0 Adventurer 6 Explorer 0 Win Type - Total 0 Types 0/0/0/0/0/0/0/0/0 Lore% 15 Gallery% 16 Achievement% 16 Wizard Run 0 Options --------- ASCII 0 Keyboard 1 Movement Arrows Keybinds 0 Fullscreen 2 Font 24/Smallcaps Map View 113x50 Tactical HUD 1 Map Filters NONE Filters NONE Steam 0 RUN: 98ba4b59-fed5-40f0-938f-a3b0651c4a22